bitfinex/quotes_SOLUSD_20250131
["timestamp","ask_amount","ask_price","bid_price","bid_amount"]
[1738328436576,0.03,241.02,241.01,21.35716738]
[1738328437982,0.03,241.02,241.01,29.31535745]
[1738328439096,0.03,241.02,241.01,29.56633745]
[1738328439693,1.0,241.1,241.09,20.0]
[1738328439995,1.0,241.1,241.09,28.25002997]
[1738328440191,1.0,241.1,241.09,42.0383485]
[1738328440589,1.0,241.1,241.09,41.7873685]
[1738328442096,0.03,241.14,241.1,13.41184853]
[1738328442398,0.03,241.14,241.13,7.94531885]
[1738328443787,0.03,241.14,241.13,21.35716738]
[1738328444202,0.03,241.14,241.13,21.66176858]
[1738328446833,0.03,241.14,241.13,25.81776858]
[1738328447816,0.03,241.14,241.13,21.66176858]
[1738328448187,0.03,241.2,241.14,13.41184853]
[1738328448388,0.03,241.2,241.19,21.35716738]
[1738328449306,0.03,241.2,241.19,7.94531885]
[1738328451010,0.03,241.2,241.19,53.44286916]
[1738328452500,0.03,241.27,241.2,13.41184853]
[1738328452703,0.03,241.27,241.26,7.94531885]
[1738328452905,0.03,241.27,241.26,21.35716738]
[1738328453212,0.03,241.27,241.26,7.94531885]
[1738328453711,0.03,241.27,241.25,7.94531885]
[1738328453893,0.03,241.27,241.24,7.94531885]
[1738328454620,0.03,241.27,241.25,7.94531885]
[1738328455198,0.03,241.27,241.26,7.94531885]
[1738328455793,0.03,241.27,241.24,7.94531885]
[1738328455988,0.03,241.27,241.23,7.94531885]
[1738328456215,0.03,241.27,241.21,7.94531885]
[1738328456429,1.6889,241.27,241.15,7.94531885]
[1738328456591,1.6889,241.27,241.16,13.41184853]
[1738328456796,1.6889,241.27,241.18,13.41184853]
[1738328457000,30.0,241.26,241.18,21.35716738]
[1738328457409,30.0,241.26,241.16,7.94531885]
[1738328457701,0.77734818,241.25,241.14,7.94531885]
[1738328457993,30.0,241.24,241.13,8.00831885]
[1738328458210,30.0,241.24,241.13,0.063]
[1738328458807,30.77744002,241.24,241.13,0.063]
[1738328459008,0.03,241.45,241.26,21.12549]
[1738328459197,0.03,241.45,241.4,13.41184853]
[1738328459401,0.03,241.45,241.39,7.94531885]
[1738328459402,0.03,241.45,241.44,7.94531885]
[1738328459621,0.03,241.45,241.4,7.94531885]
[1738328459996,0.03,241.45,241.37,13.41184853]
[1738328459997,0.03,241.45,241.39,13.41184853]
[1738328460225,6.50351115,241.49,241.48,20.0]
[1738328460426,26.01404463,241.59,241.48,20.0]
[1738328460427,26.01404463,241.59,241.52,20.0]
[1738328460600,26.01404463,241.59,241.57,7.94531885]
[1738328461200,26.01404463,241.59,241.57,21.35716738]
[1738328462098,26.01404463,241.59,241.57,7.94531885]
[1738328462300,26.01404463,241.59,241.55,7.94531885]
[1738328462525,26.01404463,241.59,241.49,13.41184853]
[1738328462699,1.0,241.7,241.56,19.74998151]
[1738328462902,0.47248682,241.69,241.56,19.74998151]
[1738328463213,2.10168682,241.71,241.6,19.74998151]
[1738328464224,20.0,241.69,241.6,19.74998151]
[1738328464429,2.10168682,241.71,241.6,19.74998151]
[1738328465021,20.0,241.69,241.58,19.74998151]
[1738328465220,20.47248682,241.69,241.56,19.74998151]
[1738328465427,20.0,241.69,241.58,19.74998151]
[1738328466212,0.47248682,241.68,241.58,19.74998151]
[1738328466418,6.08694281,241.69,241.56,26.27740607]
[1738328466606,1.0,241.68,241.56,26.27740607]
[1738328466812,2.98,241.71,241.56,6.52742456]
[1738328467515,2.98,241.71,241.51,6.59042456]
[1738328468834,20.0,241.65,241.51,6.59042456]
[1738328469023,20.0,241.65,241.51,0.063]
[1738328469618,14.46835412,241.71,241.55,1.0]
[1738328469824,20.0,241.67,241.53,1.0]
[1738328470720,0.07755454,241.54,241.53,1.0]
[1738328470930,0.07755454,241.54,241.53,2.0]
[1738328471517,0.07755454,241.54,241.53,2.62094887]
[1738328471717,0.07755454,241.54,241.53,16.0327974]
[1738328472733,0.07755454,241.54,241.53,15.41184853]
[1738328472903,0.07755454,241.54,241.53,1.0]
[1738328473235,0.07755454,241.54,241.53,2.0]
[1738328473914,0.07755454,241.54,241.53,1.0]
[1738328474426,0.07755454,241.54,241.51,1.063]
[1738328474626,0.07755454,241.54,241.51,0.063]
[1738328475629,0.07755454,241.54,241.51,1.063]
[1738328476215,0.07755454,241.54,241.51,0.063]
[1738328476437,0.07755454,241.54,241.51,1.063]
[1738328476732,0.07755454,241.54,241.51,0.063]
[1738328478937,0.08576178,241.56,241.51,0.063]
[1738328482225,20.0,241.54,241.51,0.063]
[1738328483128,20.0,241.54,241.37,25.93328151]
[1738328483129,20.0,241.54,241.38,1.0]
[1738328484230,20.0,241.53,241.34,1.0]
[1738328484449,20.0,241.49,241.34,1.0]
[1738328484644,3.0,241.48,241.34,1.0]
[1738328484840,3.0,241.48,241.32,1.0]
[1738328485331,3.0,241.48,241.3,1.0]
[1738328485532,1.6464,241.46,241.3,1.0]
[1738328485742,20.0,241.44,241.3,1.0]
[1738328487550,20.0,241.43,241.3,1.0]
[1738328487863,20.0,241.43,241.27,1.0]
[1738328488639,21.0354801,241.43,241.27,1.0]
[1738328489962,21.0354801,241.43,241.26,0.063]
[1738328490267,20.0,241.39,241.26,0.063]
[1738328490455,20.0,241.39,241.27,0.063]
[1738328490832,0.08951294,241.28,241.27,0.063]
[1738328491560,1.74926794,241.28,241.27,0.063]
[1738328493633,0.08951294,241.28,241.27,0.063]
[1738328496272,0.08951294,241.28,241.27,0.68467674]
[1738328496435,0.08951294,241.28,241.27,33.84650678]
[1738328497736,20.0,241.43,241.38,1.0]
[1738328498759,49.22,241.46,241.38,1.0]
[1738328499256,20.0,241.43,241.38,1.0]
[1738328499762,20.0,241.43,241.36,1.0]
[1738328500168,20.0,241.43,241.38,1.0]
[1738328500766,20.0,241.43,241.36,1.0]
[1738328501633,20.0,241.43,241.32,1.0]
[1738328501879,20.0,241.43,241.27,0.063]
[1738328502657,20.0,241.39,241.27,0.063]
[1738328504333,20.0,241.37,241.27,0.063]
[1738328504850,22.98,241.37,241.27,0.063]
[1738328508960,20.0,241.29,241.15,1.0]
[1738328509342,20.0,241.29,241.16,2.0]
[1738328509664,13.41184853,241.36,241.16,2.0]
[1738328509851,2.98,241.37,241.16,2.0]
[1738328510154,20.0,241.36,241.19,1.0]
[1738328510865,0.08976445,241.2,241.19,1.0]
[1738328512755,0.08976445,241.2,241.19,2.0]
[1738328512961,0.08976445,241.2,241.19,2.62178351]
[1738328513355,0.08976445,241.2,241.19,35.78361355]
[1738328515568,0.08976445,241.2,241.19,35.84661355]
[1738328517063,0.08403675,241.21,241.2,13.41184853]
[1738328517259,0.08403675,241.21,241.2,33.16183004]
[1738328517575,0.08403675,241.21,241.2,13.41184853]
[1738328518555,0.08403675,241.21,241.2,33.16183004]
[1738328519278,0.08375208,241.22,241.21,15.41184853]
[1738328519479,0.08375208,241.22,241.21,16.03342094]
[1738328520179,0.08289365,241.23,241.22,13.66282853]
[1738328520363,0.08321629,241.24,241.22,33.41281004]
[1738328520673,0.08321629,241.24,241.23,16.033314]
[1738328521657,57.1947,241.46,241.26,1.0]
[1738328521863,50.7791,241.46,241.27,1.0]
[1738328522082,50.7791,241.46,241.27,14.41184853]
[1738328522382,50.487623,241.46,241.28,13.41184853]
[1738328522591,50.487623,241.46,241.36,1.0]
[1738328522761,30.0,241.37,241.36,1.0]
[1738328524278,50.487623,241.46,241.36,1.0]
[1738328524486,50.487623,241.46,241.38,1.0]
[1738328524678,30.0,241.39,241.38,2.0]
[1738328525065,30.0,241.39,241.34,1.0]
[1738328525387,30.0,241.39,241.3,1.0]
[1738328525577,30.0,241.39,241.36,1.0]
[1738328525978,30.0,241.39,241.37,13.41184853]
[1738328526169,0.03,241.51,241.48,1.0]
[1738328526373,30.0,241.49,241.42,1.0]
[1738328526687,30.0,241.49,241.4,1.0]
[1738328526867,30.0,241.49,241.35,19.74998151]
[1738328526868,30.0,241.49,241.38,1.0]
[1738328527268,20.0,241.45,241.38,1.0]
[1738328527471,20.0,241.45,241.36,1.0]
[1738328527670,20.0,241.45,241.32,1.0]
[1738328527869,1.5134,241.44,241.34,1.0]
[1738328528076,21.5134,241.44,241.34,1.0]
[1738328528379,20.0,241.39,241.34,1.0]
[1738328528582,20.0,241.39,241.32,2.0]
[1738328529073,20.0,241.39,241.32,1.0]
[1738328529257,30.0,241.38,241.3,1.0]
[1738328529461,20.0,241.35,241.33,1.0]
[1738328530588,30.0,241.34,241.33,1.0]
[1738328530885,30.0,241.34,241.31,1.0]
[1738328531382,20.0,241.31,241.29,1.0]
[1738328532193,20.0,241.31,241.27,0.063]
[1738328532563,1.6164,241.3,241.27,0.063]
[1738328532763,30.0,241.29,241.19,0.063]
[1738328532976,20.0,241.26,241.19,1.063]
[1738328533991,20.0,241.21,241.19,1.063]
[1738328534192,20.0,241.21,241.19,0.063]
[1738328534768,30.0,241.2,241.19,0.063]
[1738328535273,25.0,241.2,241.19,0.063]
[1738328539710,25.0,241.2,241.19,33.22483004]
[1738328540295,4.5642,241.35,241.24,1.0]
[1738328540619,30.0,241.25,241.24,1.0]
[1738328540837,30.0,241.25,241.24,21.74998151]
[1738328540998,4.5642,241.35,241.29,1.0]
[1738328542627,4.5642,241.35,241.26,1.0]
[1738328543799,4.5642,241.35,241.24,1.0]
[1738328544307,20.0,241.26,241.22,2.0]
[1738328544925,20.0,241.26,241.22,1.0]
[1738328545315,30.0,241.25,241.22,1.0]
[1738328546897,20.0,241.32,241.22,1.0]
[1738328548209,4.5642,241.35,241.25,1.0]
[1738328549819,30.0,241.26,241.25,1.0]
[1738328552727,30.0,241.26,241.25,9.7737]
[1738328552937,49.24,241.4,241.37,1.0]
[1738328553104,30.0,241.38,241.37,1.0]
[1738328554614,49.24,241.4,241.37,1.0]
[1738328555022,49.24,241.4,241.39,1.0]
[1738328555210,79.24,241.4,241.39,2.0]
[1738328555622,49.24,241.4,241.39,2.0]
[1738328557838,49.24,241.4,241.39,1.0]
[1738328559452,79.24,241.4,241.39,1.0]
[1738328559645,79.24,241.4,241.37,1.0]
[1738328559942,79.24,241.4,241.38,1.0]
[1738328560125,79.24,241.4,241.39,2.0]
[1738328560918,49.24,241.4,241.39,2.0]
[1738328562532,49.24,241.4,241.39,1.0]
[1738328563743,79.24,241.4,241.36,2.0]
[1738328564753,30.0,241.39,241.36,2.0]
[1738328565251,30.0,241.39,241.36,1.0]
[1738328566048,30.0,241.39,241.36,2.0]
[1738328566747,30.0,241.39,241.38,1.0]
[1738328566961,30.0,241.39,241.38,2.0]
[1738328568533,30.0,241.39,241.38,15.41184853]
[1738328568735,0.03,241.46,241.42,1.0]
[1738328568945,30.0,241.43,241.42,20.78242865]
[1738328569147,30.0,241.43,241.42,35.19427718]
[1738328570253,0.03,241.46,241.45,1.0]
[1738328570433,30.03,241.46,241.45,1.0]
[1738328571857,0.03,241.46,241.45,1.0]
[1738328573355,0.03,241.46,241.44,1.0]
[1738328573649,0.03,241.46,241.43,1.0]
[1738328575055,0.03,241.46,241.41,1.0]
[1738328575442,20.0,241.42,241.41,1.0]
[1738328576863,20.0,241.42,241.37,12.36257806]
[1738328576864,50.0,241.42,241.39,1.0]
[1738328577036,50.0,241.42,241.37,1.0]
[1738328577442,50.0,241.42,241.39,2.0]
[1738328577854,30.0,241.4,241.39,2.0]
[1738328578044,30.0,241.4,241.39,1.0]
[1738328579959,30.0,241.4,241.39,2.0]
[1738328583272,30.0,241.4,241.39,27.77442659]
[1738328583838,0.03,241.46,241.45,2.0]
[1738328584041,30.03,241.46,241.45,27.77442659]
[1738328584444,0.03,241.46,241.45,27.77442659]
[1738328584843,0.03,241.46,241.45,15.41184853]
[1738328585044,0.03,241.46,241.45,2.0]
[1738328587049,0.03,241.46,241.45,27.77442659]
[1738328587464,0.03,241.46,241.45,15.41184853]
[1738328588267,0.03,241.46,241.45,2.0]
[1738328589595,0.03,241.46,241.45,15.41184853]
[1738328596678,0.03,241.46,241.45,27.77442659]
[1738328597381,0.03,241.46,241.45,15.41184853]
[1738328598156,0.03,241.46,241.45,27.77442659]
[1738328604590,0.03,241.46,241.45,23.31843472]
[1738328605286,0.03,241.46,241.45,23.28037892]
[1738328605664,0.03,241.46,241.45,1.9619442]
[1738328605872,0.03,241.46,241.41,1.0]
[1738328606073,21.6958,241.46,241.39,1.0]
[1738328606874,20.0,241.42,241.39,1.0]
[1738328607991,30.0,241.41,241.39,1.0]
[1738328608175,20.0,241.38,241.31,1.0]
[1738328608373,20.0,241.38,241.33,1.0]
[1738328608573,20.0,241.38,241.36,1.0]
[1738328608892,30.0,241.37,241.36,1.0]
[1738328609491,30.0,241.37,241.34,1.0]
[1738328609969,30.0,241.37,241.36,1.0]
[1738328610806,30.0,241.37,241.36,13.36728798]
[1738328611393,30.0,241.37,241.36,26.77913651]
[1738328611700,21.6958,241.46,241.41,1.0]
[1738328611906,30.0,241.42,241.41,1.0]
[1738328612398,30.0,241.42,241.41,14.41184853]
[1738328613884,30.0,241.44,241.43,0.9619442]
[1738328615791,30.0,241.44,241.43,1.9619442]
[1738328615994,30.0,241.44,241.41,1.9619442]
[1738328617087,30.0,241.44,241.41,1.0]
[1738328618475,20.0,241.41,241.35,1.9619442]
[1738328618674,1.5721,241.4,241.35,1.0]
[1738328618899,20.0,241.38,241.37,1.9619442]
[1738328619202,20.0,241.38,241.37,0.9619442]
[1738328619689,20.0,241.38,241.36,0.9619442]
[1738328619887,30.0,241.37,241.36,0.9619442]
[1738328620090,1.5721,241.4,241.37,1.0]
[1738328620594,1.5721,241.4,241.37,1.9619442]
[1738328620995,1.5721,241.4,241.37,1.0]
[1738328621202,30.0,241.38,241.37,1.0]
[1738328622098,30.0,241.38,241.37,1.9619442]
[1738328624104,30.0,241.38,241.37,0.9619442]
[1738328624303,30.0,241.38,241.36,0.9619442]
[1738328624801,30.0,241.38,241.37,0.9619442]
[1738328625002,30.0,241.38,241.35,1.9619442]
[1738328625581,30.0,241.38,241.33,1.9619442]
[1738328625798,30.0,241.37,241.33,1.9619442]
[1738328626097,30.0,241.37,241.36,1.0]
[1738328626603,30.0,241.37,241.34,1.0]
[1738328627505,30.0,241.37,241.32,1.0]
[1738328630308,20.0,241.34,241.3,1.0]
[1738328630507,30.0,241.33,241.3,1.0]
[1738328632002,20.0,241.3,241.28,1.0]
[1738328633308,30.0,241.29,241.28,1.0]
[1738328634387,30.0,241.29,241.28,1.9619442]
[1738328634585,30.0,241.29,241.28,23.29514107]
[1738328634893,21.513,241.4,241.34,1.0]
[1738328635100,30.0,241.35,241.34,1.0]
[1738328640611,2.06584839,241.44,241.38,1.0]
[1738328640798,30.0,241.39,241.38,1.0]
[1738328640993,30.0,241.39,241.36,1.0]
[1738328642227,20.0,241.37,241.36,1.0]
[1738328642426,50.0,241.37,241.36,1.9619442]
[1738328642594,50.0,241.37,241.36,1.0]
[1738328643402,50.0,241.37,241.35,0.9619442]
[1738328643696,30.0,241.36,241.35,0.9619442]
[1738328647806,0.4489008,241.45,241.38,0.9619442]
[1738328648001,30.0,241.39,241.38,1.9619442]
[1738328648603,0.4489008,241.45,241.42,1.0]
[1738328649334,0.4489008,241.45,241.44,1.9619442]
[1738328656920,0.4489008,241.45,241.44,23.9041145]
[1738328657635,0.4489008,241.45,241.44,15.37379273]
[1738328657938,0.4489008,241.45,241.44,1.9619442]
[1738328658520,0.4489008,241.45,241.44,15.37379273]
[1738328659104,0.4489008,241.45,241.44,1.9619442]
[1738328660142,0.4489008,241.45,241.44,15.37379273]
[1738328661216,0.4489008,241.45,241.44,15.32379273]
[1738328662222,0.4489008,241.45,241.44,15.94490193]
[1738328663024,0.4489008,241.45,241.44,23.233004]
[1738328663228,0.4489008,241.45,241.44,15.32379273]
[1738328664121,0.4489008,241.45,241.44,1.9119442]
[1738328669125,0.4489008,241.45,241.44,15.32379273]
[1738328669331,0.4489008,241.45,241.44,15.94490111]
[1738328669534,0.4489008,241.45,241.44,55.49095746]
[1738328669712,0.4489008,241.45,241.44,23.85411238]
[1738328669912,0.4489008,241.45,241.44,15.32379273]
[1738328670134,0.4489008,241.45,241.44,23.233004]
[1738328672726,0.4489008,241.45,241.44,23.85408126]
[1738328672933,0.4489008,241.45,241.44,23.233004]
[1738328674116,0.4489008,241.45,241.44,23.296004]
[1738328674629,0.4489008,241.45,241.44,9.88415547]
[1738328674826,0.4489008,241.45,241.44,1.9749442]
[1738328676533,0.4489008,241.45,241.44,15.38679273]
[1738328677030,0.4489008,241.45,241.44,16.00786439]
[1738328678227,0.4489008,241.45,241.44,23.91707566]
[1738328678429,0.4489008,241.45,241.44,55.55392074]
[1738328679136,0.4489008,241.45,241.44,23.91707566]
[1738328680339,0.4489008,241.45,241.44,55.55392074]
[1738328681218,0.4489008,241.45,241.44,55.93039074]
[1738328682443,0.03,241.58,241.49,15.32379273]
[1738328682738,0.03,241.58,241.5,13.53733853]
[1738328682935,0.03,241.58,241.5,21.4465498]
[1738328683644,0.03,241.58,241.5,21.6975298]
[1738328684342,0.03,241.58,241.5,21.4465498]
[1738328685353,0.03,241.58,241.5,22.4465498]
[1738328685640,0.03,241.58,241.5,22.6975298]
[1738328686016,0.03,241.58,241.57,1.9119442]
[1738328686342,0.03,241.58,241.57,23.233004]
[1738328687540,0.03,241.58,241.57,23.85365125]
[1738328687741,0.03,241.58,241.57,23.97914125]
[1738328687935,0.03,241.58,241.57,23.85365125]
[1738328689033,0.03,241.58,241.57,23.233004]
[1738328690329,0.03,241.58,241.57,1.9119442]
[1738328693865,0.03,241.58,241.57,0.95]
[1738328694035,0.03,241.58,241.57,0.9619442]
[1738328694569,0.03,241.58,241.54,0.95]
[1738328695558,0.03,241.58,241.52,0.95]
[1738328696643,0.03,241.58,241.51,0.9619442]
[1738328697151,0.03,241.58,241.5,0.95]
[1738328697847,0.03,241.58,241.48,0.95]
[1738328698039,2.71621835,241.58,241.48,1.9119442]
[1738328698452,20.0,241.54,241.48,0.9619442]
[1738328698841,20.0,241.54,241.48,0.95]
[1738328699733,20.0,241.54,241.48,1.9119442]
[1738328699931,20.0,241.54,241.52,0.95]
[1738328700152,20.0,241.54,241.47,0.9619442]
[1738328700761,20.0,241.54,241.51,0.9619442]
[1738328701136,20.0,241.54,241.49,1.9119442]
[1738328703437,20.0,241.54,241.49,0.95]
[1738328703761,20.0,241.54,241.49,1.9119442]
[1738328704141,20.0,241.54,241.46,1.9119442]
[1738328705243,20.0,241.54,241.48,0.95]
[1738328705762,20.0,241.54,241.48,1.9119442]
[1738328706556,20.0,241.54,241.48,0.95]
[1738328706948,20.0,241.54,241.48,1.9119442]
[1738328707846,20.0,241.54,241.5,0.95]
[1738328708666,1.5921,241.56,241.52,0.9619442]
[1738328708868,1.5921,241.56,241.55,0.95]
[1738328709550,0.03,241.58,241.57,0.95]
[1738328710965,0.03,241.58,241.57,14.36184853]
[1738328711147,0.03,241.58,241.57,22.2710598]
[1738328711354,0.03,241.58,241.57,14.36184853]
[1738328713666,0.03,241.58,241.57,22.2710598]
[1738328713848,0.03,241.58,241.57,14.36184853]
[1738328714859,0.03,241.58,241.57,28.5151598]
[1738328715083,0.03,241.58,241.57,20.60594853]
[1738328715386,0.03,241.58,241.57,28.5151598]
[1738328723352,0.03,241.58,241.57,22.2710598]
[1738328723761,0.03,241.58,241.57,23.6475298]
[1738328723965,0.03,241.58,241.57,22.2710598]
[1738328725954,0.03,241.58,241.57,23.2710598]
[1738328727164,0.03,241.58,241.57,22.2710598]
[1738328728259,0.03,241.58,241.57,23.5220398]
[1738328728480,1.5582,241.72,241.58,13.41184853]
[1738328728661,1.5582,241.72,241.71,0.95]
[1738328734683,1.5882,241.72,241.71,0.95]
[1738328737473,0.03,241.72,241.71,0.95]
[1738328738881,0.03,241.72,241.71,22.89149011]
[1738328739570,0.03,241.72,241.71,22.47162195]
[1738328739770,0.03,241.72,241.71,22.47154224]
[1738328740677,0.03,241.72,241.71,23.47154224]
[1738328740884,0.03,241.72,241.71,22.72252224]
[1738328741081,0.03,241.72,241.71,22.47154224]
[1738328741280,0.03,241.72,241.71,21.85119164]
[1738328741876,0.03,241.72,241.71,22.47153474]
[1738328742592,0.03,241.72,241.71,22.72251474]
[1738328742898,0.03,241.72,241.71,23.72251474]
[1738328743098,0.03,241.72,241.71,22.72251474]
[1738328743398,0.03,241.72,241.71,23.72251474]
[1738328743792,0.03,241.72,241.71,22.47153474]
[1738328744105,0.03,241.72,241.71,13.94198037]
[1738328745379,0.03,241.72,241.71,22.4715347]
[1738328746386,0.03,241.72,241.71,13.94198037]
[1738328747399,0.03,241.72,241.71,0.53013184]
[1738328749377,0.03,241.72,241.71,13.94198037]
[1738328749580,0.03,241.72,241.71,14.56241826]
[1738328750686,0.03,241.72,241.71,0.53013184]
[1738328751699,0.03,241.72,241.71,14.56239914]
[1738328754191,0.03,241.72,241.71,26.89156464]
[1738328755020,0.03,241.72,241.71,29.26803464]
[1738328755201,0.03,241.72,241.71,35.41093464]
[1738328756198,0.03,241.72,241.71,34.41093464]
[1738328756597,0.03,241.72,241.71,33.41093464]
[1738328756793,0.03,241.72,241.71,26.89156464]
[1738328759710,0.03,241.76,241.75,1.49207604]
[1738328761916,0.03,241.76,241.75,14.90392457]
[1738328762837,0.03,241.76,241.75,27.23309007]
[1738328763006,0.03,241.76,241.75,27.85337104]
[1738328766121,0.03,241.76,241.75,28.10435104]
[1738328767218,0.03,241.76,241.75,28.22984104]
[1738328767406,0.03,241.83,241.82,2.49207604]
[1738328767731,0.03,241.83,241.82,29.10402207]
[1738328768319,0.03,241.83,241.82,27.85304207]
[1738328768512,0.03,241.83,241.82,11.90392457]
[1738328769025,0.03,241.83,241.82,24.23309007]
[1738328770223,0.03,241.83,241.82,25.23309007]
[1738328770722,0.03,241.83,241.82,24.23309007]
[1738328771028,0.03,241.83,241.82,25.23309007]
[1738328771320,1.00001,241.89,241.83,13.41184853]
[1738328771621,1.00001,241.89,241.85,13.41184853]
[1738328773124,1.00001,241.89,241.83,14.03184248]
[1738328773321,1.00001,241.89,241.85,0.61999395]
[1738328774833,1.00001,241.89,241.86,21.29150867]
[1738328775125,1.00001,241.89,241.88,13.41184853]
[1738328776221,1.00001,241.89,241.85,13.41184853]
[1738328776428,1.00001,241.89,241.86,0.619949]
[1738328777538,1.00001,241.89,241.87,13.41184853]
[1738328777710,1.00001,241.89,241.88,21.91141816]
[1738328779012,1.00001,241.89,241.81,7.87966014]
[1738328779213,1.00001,241.89,241.82,13.41184853]
[1738328779912,1.00001,241.89,241.8,13.41184853]
[1738328780722,1.00001,241.89,241.82,13.41184853]
[1738328780930,1.00001,241.89,241.83,0.62003362]
[1738328781230,1.00001,241.89,241.84,13.41184853]
[1738328781434,1.00001,241.89,241.86,13.41184853]
[1738328782329,1.00001,241.89,241.88,13.41184853]
[1738328782914,1.00001,241.89,241.86,13.41184853]
[1738328783911,1.03001,241.89,241.83,13.47484853]
[1738328784849,1.03001,241.89,241.83,0.063]
[1738328785431,30.0,241.88,241.83,0.063]
[1738328788312,30.0,241.88,241.84,13.41184853]
[1738328789308,30.0,241.88,241.83,13.47484853]
[1738328790209,1.03001,241.89,241.83,13.47484853]
[1738328790415,1.03001,241.89,241.83,14.09493531]
[1738328791120,1.03001,241.89,241.83,13.47484853]
[1738328791317,1.03001,241.89,241.83,14.09493344]
[1738328791529,1.03001,241.89,241.83,0.063]
[1738328796235,1.03001,241.89,241.83,13.47484853]
[1738328796441,1.03001,241.89,241.85,13.41184853]
[1738328796629,1.03001,241.89,241.87,13.41184853]
[1738328796942,1.03001,241.89,241.88,0.6199293]
[1738328797238,1.03001,241.89,241.87,13.41184853]
[1738328797423,1.03001,241.89,241.87,14.03177316]
[1738328798131,1.03001,241.89,241.83,0.063]
[1738328799845,1.03001,241.89,241.83,13.47484853]
[1738328801140,1.03001,241.89,241.83,0.063]
[1738328802342,1.03001,241.89,241.83,13.47484853]
[1738328804847,1.03001,241.89,241.83,0.063]
[1738328805223,30.0,241.88,241.83,0.063]
[1738328805627,1.6436,241.87,241.83,0.063]
[1738328806346,30.0,241.86,241.83,0.063]
[1738328806847,20.0,241.84,241.83,0.063]
[1738328807345,50.0,241.84,241.83,0.063]
[1738328807551,51.0,241.84,241.83,0.063]
[1738328807933,50.0,241.84,241.83,0.063]
[1738328808336,51.0,241.84,241.83,0.063]
[1738328808651,50.0,241.84,241.83,0.063]
[1738328810355,30.0,241.84,241.83,0.063]
[1738328815053,20.0,241.81,241.72,0.063]
[1738328815234,30.0,241.8,241.72,0.063]
[1738328820570,1.5781,241.76,241.72,0.063]
[1738328820782,30.0,241.75,241.72,0.063]
[1738328824470,20.0,241.78,241.72,0.063]
[1738328827675,30.0,241.74,241.72,0.063]
[1738328828261,20.0,241.78,241.72,0.063]
[1738328828690,1.5781,241.81,241.72,7.95291873]
[1738328828864,0.03,241.84,241.75,7.88991873]
[1738328829175,0.03,241.84,241.77,7.88991873]
[1738328829578,0.03,241.84,241.77,13.41184853]
[1738328829870,0.03,241.84,241.77,21.30176726]
[1738328830074,0.03,241.84,241.79,13.41184853]
[1738328831354,0.03,241.84,241.78,13.41184853]
[1738328832954,0.03,241.84,241.77,7.88991873]
[1738328833150,0.03,241.84,241.75,7.88991873]
[1738328833355,0.03,241.84,241.72,13.47484853]
[1738328834154,20.0,241.83,241.72,13.47484853]
[1738328834356,20.0,241.83,241.72,0.063]
[1738328834555,1.6148,241.82,241.72,0.063]
[1738328835475,30.0,241.79,241.72,0.063]
[1738328835976,20.0,241.76,241.72,0.063]